Cogmind - Beta 15 @@@ ROGUE MODE // 2025.06.28 @ 15:55:36 Player: AUSBird Result: Destroyed by G-34 Mercenary with Small Laser Performance ------------- Evolutions (0) 0 Regions Visited (1) 200 Robots Destroyed (3) 15 Value Destroyed (104) 104 Prototype IDs (0) 0 Alien Tech Used (0) 0 Bonus (0) 0 TOTAL SCORE: 319 Bonus ------- None Cogmind --------- Core Integrity 0/250 Matter 200/300 Energy 183/250 System Corruption 0% Temperature Cool (6) Movement Rolling (110) Ox2 Location -10/Materials Parts ------- > --- POWER (1) -------- (None) > --- PROPULSION (2) --- Wheel > --- UTILITY (2) ------ Large Storage Unit Medium Battery > --- WEAPON (2) ------- (None) > --- INVENTORY (15) --- Ion Engine Ion Engine Compact Wheel Large Storage Unit Core Shielding Core Shielding Small Laser Peak State ------------ > --- POWER ------------ Light Ion Engine > --- PROPULSION ------- Wheel Compact Wheel > --- UTILITY ---------- Small Storage Unit Medium Battery > --- WEAPON ----------- Small Laser Small Laser > --- INVENTORY -------- Light Ion Engine Light Treads Light Treads Aluminum Leg Aluminum Leg EM Pulse Gun [Rating: 7] Favorites ----------- Power Light Ion Engine Engine Light Ion Engine Propulsion Aluminum Leg Leg Aluminum Leg Wheel Wheel Utility Medium Battery Storage Medium Battery Weapon Small Laser Energy Gun Small Laser Launcher Grenade Launcher Build | -11 -10 ------- Run | Yrd Mat Slots Evolved . | . . Power . | . . Propulsion . | . . Utility . | . . Weapon . | . . Parts Attached 13 | 6 7 Power 1 | 1 . Engine 1 | 1 . Core . | . . Reactor . | . . Propulsion 4 | 2 2 Treads . | . . Leg 2 | . 2 Wheel 2 | 2 . Hover . | . . Flight . | . . Utility 4 | 1 3 Device . | . . Storage 4 | 1 3 Processor . | . . Hackware . | . . Protection . | . . Artifact . | . . Weapon 4 | 2 2 Energy Gun 3 | 2 1 Energy Cannon . | . . Ballistic Gun . | . . Ballistic Cannon . | . . Launcher 1 | . 1 Special Weapon . | . . Impact Weapon . | . . Slashing Weapon . | . . Piercing Weapon . | . . Special Melee Weapon . | . . Unidentified Prototypes . | . . Parts Lost 6 | . 6 Power 1 | . 1 Propulsion 2 | . 2 Utility . | . . Weapon 3 | . 3 Highest Loss Streak 4 | . 4 To Critical Strikes . | . . Average Backups 6 | 4 7 Power 1 | . 1 Propulsion 2 | 2 2 Utility 1 | . 1 Weapon 1 | 1 1 Tool/Special . | . . Unused Backups 9 | . 9 Power 3 | . 3 Propulsion 2 | . 2 Utility 4 | . 4 Weapon . | . . Tool/Special . | . . Average Slot Usage (%) 84 | . 84 Engine 11 | . 11 Leg 22 | . 22 Wheel 3 | . 3 Storage 27 | . 27 Energy Gun 15 | . 15 Launcher 4 | . 4 Peak Build Rating 7 | 6 7 Average Rating 5 | 3 5 On Entrance 3 | . 6 Naked Turns . | . . Heaviest Build 29 | 10 29 Greatest Support 26 | 26 26 Greatest Overweight (x) 2 | 1 2 Average Overweight (x) . | . . Largest Inventory Capacity 15 | 8 15 Average Capacity 12 | 7 13 Most Carried 9 | 8 9 Average Carried 7 | 4 7 Final Capacity 15 | 8 15 Final Carried 7 | 6 7 Class Distribution -------------------- 100% | Mutant Dominant Class ---------------- Mutant | -10/Materials Resources | -11 -10 ----------- Run | Yrd Mat Matter Collected 260 | 225 35 Remotely . | . . Salvage Created 66 | . 66 Parts 7 | . 7 Haulers Intercepted . | . . Recyclers Shooed . | . . Parts Field Recycled . | . . Retrieved Matter . | . . Parts Self-Destructed . | . . Prevented . | . . Kills | -11 -10 ------- Run | Yrd Mat Combat Hostiles Destroyed 2 | . 2 AOE 2 | . 2 Classes Destroyed 2 | . 2 Operator 1 | . 1 Grunt 2 | . 2 Best Kill Streak 1 | . 1 Combat Bots Only 1 | . 1 Max Kills in Single Turn 1 | . 1 Gunslinging . | . . Exploded 1 | . 1 Melee . | . . Uniques/NPCs Destroyed . | . . Combat | -11 -10 -------- Run | Yrd Mat Hostile Shots Fired 110 | . 110 Missed 37 | . 37 Hits 73 | . 73 Projectile 73 | . 73 Damage Taken 839 | . 839 Core 257 | . 257 Absorbed by Shields . | . . Core Remaining (%) 100 | 100 . Volleys Fired 13 | . 13 Largest 2 | . 2 Hottest 70 | . 70 Shots Fired 17 | . 17 Gun 13 | . 13 Cannon . | . . Launcher 4 | . 4 Special . | . . Kinetic . | . . Thermal 9 | . 9 Explosive 4 | . 4 Electromagnetic 4 | . 4 Robot Hit Streak 3 | . 3 Robot Miss Streak 4 | . 4 Penetration Max . | . . Secondary Targets . | . . Shots Hit Robots 7 | . 7 Core Hits 6 | . 6 Critical Kills . | . . Critical Parts Destroyed . | . . Critical Strikes . | . . Melee Attacks . | . . Impact . | . . Slashing . | . . Piercing . | . . Sneak Attacks . | . . Combat Hostiles . | . . Follow-up Attacks . | . . Damage Inflicted 221 | . 221 Guns 62 | . 62 Cannons . | . . Explosions 159 | . 159 Melee . | . . Ramming . | . . Kinetic . | . . Thermal 21 | . 21 Explosive 159 | . 159 Electromagnetic 41 | . 41 Impact . | . . Slashing . | . . Piercing . | . . Highest Corruption . | . . Average Corruption . | . . Corruption Purged . | . . Corruption Blocked . | . . Overload Shots . | . . Overflow Damage . | . . Projectiles . | . . Explosions . | . . Melee . | . . Knockbacks . | . . Impact . | . . Kinetic . | . . Secondary . | . . Self-Inflicted Damage 51 | . 51 Shots 2 | . 2 Rammed . | . . Targets Rammed . | . . Kicked . | . . Crushed . | . . Highest Temperature 57 | . 57 Average Temperature 22 | . 22 Received Heat Transfer 438 | . 438 Siege Activations . | . . Martial Activations . | . . Shielding Activations . | . . Robots Disrupted . | . . Combat Hostiles . | . . Robots Corrupted . | . . Combat Hostiles . | . . Parts Fried . | . . Impact Corruptions . | . . Robots Melted . | . . Combat Hostiles . | . . Parts Melted . | . . Heat Transferred 50 | . 50 Parts Sabotaged . | . . Parts Stolen . | . . Parts Stripped . | . . Power Chain Reactions . | . . Alert | -11 -10 ------- Run | Yrd Mat Maximum Alert Level . | . . Low Security (%) 100 | 100 100 Level 1 . | . . Level 2 . | . . Level 3 . | . . Level 4 . | . . Level 5 . | . . High Security . | . . Max Security . | . . Peak Influence 83 | . 83 Initial . | . . Average 12 | . 17 Influence Increases 110 | . 110 Destroy 0b10 Robot/C 40 | . 40 Destroy 0b10 Robot/NC 5 | . 5 Destroy Leader 10 | . 10 Successful Hack 7 | . 7 Disable Machine 30 | . 30 Destroy Structure 18 | . 18 Influence Decreases 110 | . 110 Time Decay 70 | . 70 Lost Part 40 | . 40 Squads Dispatched 3 | . 3 Investigation 2 | . 2 Extermination . | . . Reinforcement 1 | . 1 Assault . | . . Garrison . | . . Intercept . | . . Searches Triggered . | . . Construction Impeded . | . . Haulers Reinforced . | . . Active Scanning Responses . | . . Cargo Convoy Interrupts . | . . Stealth | -11 -10 --------- Run | Yrd Mat Distress Signals . | . . Communications Jammed . | . . Distress Signals . | . . Times Spotted 7 | . 7 Peak Tracking Total 4 | . 4 Tactical Retreats . | . . Traps | -11 -10 ------- Run | Yrd Mat Traps Triggered . | . . Indirectly . | . . Trap Hack Attempts . | . . Triggered . | . . Disarmed . | . . Reprogrammed . | . . Reused . | . . Traps Extracted . | . . Installed . | . . Triggered . | . . Machines | -11 -10 ---------- Run | Yrd Mat Machines Disabled 2 | . 2 Max in Single Turn 1 | . 1 Machines Repaired . | . . Machines Dismantled . | . . Machines Sabotaged . | . . Overloaded Fab Kills . | . . Hacking | -11 -10 --------- Run | Yrd Mat Machines Accessed 2 | . 2 Terminals 2 | . 2 Fabricators . | . . Repair Stations . | . . Recycling Units . | . . Scanalyzers . | . . Garrison Access . | . . Total Hacks 7 | . 7 Successful 4 | . 4 Failed 3 | . 3 Catastrophic 1 | . 1 Database Lockouts . | . . Manual . | . . Terminals 7 | . 7 Fabricators . | . . Repair Stations . | . . Recycling Units . | . . Scanalyzers . | . . Garrison Access . | . . Terminal Hacks 4 | . 4 Record 1 | . 1 Emergency Access Points 1 | . 1 Security Status 1 | . 1 Zone Layout 1 | . 1 Fabricator Hacks . | . . Repair Station Hacks . | . . Recycling Unit Hacks . | . . Scanalyzer . | . . Garrison Access Hacks . | . . Unauthorized Hacks . | . . Terminals . | . . Fabricators . | . . Repair Stations . | . . Recycling Units . | . . Scanalyzers . | . . Garrison Access . | . . Data Cores Recovered . | . . Used . | . . Hacking Detections 2 | . 2 Full Trace Events 2 | . 2 Feedback Events . | . . Feedback Blocked . | . . Robot Schematics Acquired . | . . Robots Built . | . . Authchips . | . . Time . | . . Total Robot Build Rating . | . . Part Schematics Acquired . | . . Parts Built . | . . Authchips . | . . Time . | . . Total Part Build Rating . | . . Parts Repaired . | . . Time . | . . Parts Recycled . | . . Recycled Matter . | . . Retrieved Matter . | . . Retrieved Components . | . . Parts Scanalyzed . | . . Part Schematics Acquired . | . . Parts Damaged . | . . Bothacking | -11 -10 ------------ Run | Yrd Mat Used RIF Installer . | . . Robots Hacked . | . . Non-combat . | . . Combat . | . . Robot Hacks Applied . | . . Relay Couplers Released . | . . Fabnet Peak Effective % . | . . Robots Rewired . | . . Allies Hacked . | . . Hacks Repelled . | . . Allies | -11 -10 -------- Run | Yrd Mat Total Allies . | . . Largest Group . | . . Highest-Rated Group . | . . Highest-Rated Ally . | . . Total Orders . | . . Ally Attacks . | . . Total Damage . | . . Kills . | . . Allies Corrupted . | . . Allies Melted . | . . Intel | -11 -10 ------- Run | Yrd Mat Active Infowar (turns) . | . . Robot Analysis Total . | . . Derelict Logs Recovered . | . . Drone Launches . | . . Drone Recoveries . | . . Exploration | -11 -10 ------------- Run | Yrd Mat Turns Passed 367 | 94 273 Spaces Moved 207 | 83 124 Core 27 | 27 . Treads . | . . Legs 109 | . 109 Wheels 71 | 56 15 Hover . | . . Flight . | . . Fastest Speed 50 | 50 90 Average Speed 141 | 91 175 Slowest Speed 260 | 100 260 Overloaded Moves . | . . Propulsion Burnouts . | . . Robots Hopped . | . . Potential Cave-ins . | . . Cave-ins Triggered . | . . Exploration Rate (%) 11 | 5 18 Regions Visited 1 Branch Regions . Pre-discovered Areas . | . . Known Exits Taken . | . . Unknown Exits Taken 1 | 1 . Scrap Searched . | . . Spaces Dug . | . . Terrain Destroyed 15 | . 15 Melee . | . . Projectile . | . . AOE 15 | . 15 Terrain Rammed . | . . Walls Destroyed . | . . Machines Disabled . | . . Actions | -11 -10 --------- Run | Yrd Mat Total 267 | 100 167 Wait . | . . Move 206 | 82 124 Hop . | . . Pick Up 24 | 12 12 Fast Attach . | . . Attach 14 | 6 8 Detach 1 | . 1 Swap 1 | . 1 Drop 8 | . 8 Fire 13 | . 13 Melee . | . . Ram . | . . Kick . | . . Crush . | . . Escape Stasis . | . . Rewire . | . . Trap . | . . Miscellaneous . | . . Route ------- -11/Scrapyard -10/Materials History --------- Turn | Location | Event 7 | -11/Scrapyard | Discovered new exit (range 15) 95 | -11/Scrapyard | Entered Materials 309 | -10/Materials | Build established: Mutant 318 | -10/Materials | Core integrity fell below 50% 342 | -10/Materials | Lost 4 parts (1p1n2w) 361 | -10/Materials | Core integrity fell below 20% 368 | -10/Materials | Destroyed by G-34 Mercenary with Small Laser Last Messages --------------- Map updated. ALERT: Suspicious activity at Terminal M004. Dispatching Investigation squad. U-05 Engineer lays Concrete. U-05 Engineer builds a Door. Acquired Core Shielding. U-05 Engineer builds a Wall. Acquired Core Shielding. G-34 Mercenary destroyed. Terminal disabled. Acquired 35 matter. The unstable cave ceiling collapses. Terminal disabled. G-34 Mercenary destroyed. Grenade Launcher destroyed. The unstable cave ceiling collapses. Sml. Laser destroyed. Lgt. Ion Engine destroyed. Aluminum Leg destroyed. EM Pulse Gun destroyed. Map ----- +----------------------------------------------------+ | ??????????????????????????# #" | | ??????????????????????????# ## | | ??????????????????????????# ## | | ??????????????????????????# ## | | ??????????????????????????# #! | | ????????????##??????????########## | | ????????????? ???????### # #### | | ?????????????? ??????# | | ??????????????# ??????#! = =# | | ????????????###/#######! *! T | | ?????????? ?# #!| | | ?????????? ?# ! # # | | ?????????? ?# != #+### # | | ?????????? ?# != / #### | | ?????????? ?# != # | | ?????????? ?# # | | ?????????? ?# # | | ?????????# ## # ########## | | ?????????# ########+### #########? | | ?????????# # ## # #? | | ?????????# # ## + #? | | ?????????# # ## # #? | | ?????????# # ## #########? | | ?????????# ########+## #???????? | | ?????????+ g g " #???????? | | ?????????#@ g % #???????? | | ?????????# ###g###+## #???????? | | ?????????# #?# ######???????? | | ?????????# #?# =#????????????? | | ?????????####?# """ #????????????? | | ??????????????# "R #????????????? | | ??????????????# """ #????????????? | | ??????????????# #????????????? | | ??????????????########????????????? | | ??????????????????????????????????? | | | | | | | | | | | | | | | | | | | | | | | | | | | | | | | +----------------------------------------------------+ Best States ------------- Heat Dissipation 25 Energy Generation 10 Energy Capacity 275 Matter Stores 265 Matter Capacity 300 Sight Range 16 Terrain Scan Density 10 Evasion (%) 45 Item Schematics ----------------- None Robot Schematics ------------------ None Fabricated ------------ Nothing Repaired ---------- Nothing Alien Tech Used ----------------- None Achievements -------------- None Challenges ------------ None Game ------ Seed RefineryLightpackBlaster Manual? 0 Play Time 00:07:35 Cumulative 2.6 hours Start 2025.06.28 @ 15:47:48 End 2025.06.28 @ 15:55:36 Sessions 1 Manual Loads 0 Difficulty Rogue Special Mode None Game No. 5 Rogue 4 Adventurer 1 Explorer 0 Win Type - Total 0 Types 0/0/0/0/0/0/0/0/0/0 Lore% 1 Gallery% 5 Achievement% 7 Wizard Run 0 Options --------- Layout 1 ASCII 0 Keyboard 0 Movement Arrows Keybinds 0 Fullscreen 2 Font 28/SmallcapsGlow Map View 50x43 Zoom Use 0% Tactical HUD 0 Map Filters NONE Filters NONE Steam 1 RUN: 56b7f3c5-c083-45f2-b9d3-59906cdfd2e7